[Event "POL-chT 1st League 2020"]
[Site "Ustron"]
[Date "2020.09.08"]
[Round "4.29"]
[White "Redzisz, Michal"]
[Black "Boe, Mads"]
[Result "1-0"]
[ECO "A96"]
[WhiteElo "2164"]
[BlackElo "2284"]
[Annotator "ChessBase"]
[PlyCount "53"]
[EventDate "2020.09.05"]
[EventType "team-tourn"]
[EventCountry "POL"]
[SourceTitle "playchess.com"]
[Source "ChessBase"]
[SourceQuality "1"]
[TimeControl "40/5400+30:1800+30"]

1. d4 {[%emt 0:00:00]} f5 {[%emt 0:00:00]} 2. g3 {[%emt 0:00:00]} Nf6 {[%emt 0:00:00]} 3. Bg2 {[%emt 0:00:00]} e6 {[%emt 0:00:06]} 4. Nf3 {[%emt 0:00:00]} Be7 {[%emt 0:00:41]} 5. O-O {[%emt 0:00:00]} O-O {[%emt 0:00:06]} 6. c4 {[%emt 0:00:00]} d6 {[%emt 0:00:07]} 7. b3 {[%emt 0:00:07]} Qe8 {[%emt 0:04:05]} 8. Bb2 {[%emt 0:00:04]} Nc6 {[%emt 0:05:34]} 9. Nc3 {[%emt 0:04:24]} Bd7 {[%emt 0:16:34]} 10. Re1 {[%emt 0:00:39]} Qh5 {[%emt 0:00:43]} 11. e4 {[%emt 0:05:30]} fxe4 {[%emt 0:00:56]} 12. Nxe4 {[%emt 0:00:07]} Nxe4 {[%emt 0:01:43]} 13. Rxe4 {[%emt 0:00:04]} Bf6 {[%emt 0:00:11]} 14. Qd2 {[%emt 0:11:44]} Rae8 {[%emt 0:13:04]} 15. Rae1 {[%emt 0:01:39]} b6 {[%emt 0:04:39]} 16. h4 {[%emt 0:07:17]} Nd8 {[%emt 0:01:47]} 17. g4 {[%emt 0:13:50]} Qf7 {[%emt 0:07:48]} 18. Rf4 {[%emt 0:01:28]} e5 {[%emt 0:17:15]} 19. dxe5 {[%emt 0:04:08]} dxe5 {[%emt 0:00:08]} 20. Nxe5 {[%emt 0:01:48]} Qe7 {[%emt 0:00:10]} 21. Bd5+ {[%emt 0:04:01]} Be6 {[%emt 0:00:06]} 22. g5 {[%emt 0:16:04]} Bxe5 {[%emt 0:00:33]} 23. Rxe5 {[%emt 0:01:17]} c6 {[%emt 0:07:34]} 24. Bxe6+ {[%emt 0:03:28]} Nxe6 {[%emt 0:00:07]} 25. Rfe4 {[%emt 0:00:48]} Qf7 {[%emt 0:01:04]} 26. Qe2 {[%emt 0:03:35]} Nf4 {[%emt 0:00:22]} 27. Rxf4 {[%emt 0:00:07]} 1-0

[Event "POL-chT 1st League 2020"]
[Site "Ustron"]
[Date "2020.09.08"]
[Round "4.30"]
[White "Kubicka, Anna"]
[Black "Moscicka, Pola"]
[Result "1-0"]
[ECO "B67"]
[WhiteElo "2264"]
[BlackElo "1880"]
[Annotator "ChessBase"]
[PlyCount "83"]
[EventDate "2020.09.05"]
[EventType "team-tourn"]
[EventCountry "POL"]
[SourceTitle "playchess.com"]
[Source "ChessBase"]
[SourceQuality "1"]
[TimeControl "40/5400+30:1800+30"]

1. e4 {[%emt 0:00:00]} c5 {[%emt 0:00:00]} 2. Nf3 {[%emt 0:00:00]} Nc6 {[%emt 0:00:00]} 3. d4 {[%emt 0:00:00]} cxd4 {[%emt 0:00:00]} 4. Nxd4 {[%emt 0:00:00]} Nf6 {[%emt 0:00:00]} 5. Nc3 {[%emt 0:00:00]} d6 {[%emt 0:00:08]} 6. Bg5 {[%emt 0:00:00]} e6 {[%emt 0:00:20]} 7. Qd2 {[%emt 0:00:02]} a6 {[%emt 0:00:16]} 8. O-O-O {[%emt 0:00:13]} Bd7 {[%emt 0:00:08]} 9. Kb1 {[%emt 0:00:19]} b5 {[%emt 0:05:01]} 10. Nxc6 {[%emt 0:01:02]} Bxc6 {[%emt 0:00:07]} 11. f3 {[%emt 0:01:00]} Be7 {[%emt 0:04:06]} 12. Bxf6 {[%emt 0:01:01]} gxf6 {[%emt 0:01:27]} 13. Bd3 {[%emt 0:00:47]} Qb6 {[%emt 0:16:12]} 14. f4 {[%emt 0:03:02]} a5 {[%emt 0:08:06]} 15. f5 {[%emt 0:01:46]} b4 {[%emt 0:04:24]} 16. Ne2 {[%emt 0:00:16]} e5 {[%emt 0:01:40]} 17. Ng3 {[%emt 0:00:32]} a4 {[%emt 0:06:25]} 18. Bc4 {[%emt 0:04:03]} Qc5 {[%emt 0:05:40]} 19. Bd5 {[%emt 0:03:58]} Rc8 {[%emt 0:02:44]} 20. Bxc6+ {[%emt 0:00:37]} Rxc6 {[%emt 0:02:12]} 21. Qe2 {[%emt 0:05:43]} Kd7 {[%emt 0:13:31]} 22. Rd5 {[%emt 0:01:38]} Qa7 {[%emt 0:00:36]} 23. Rb5 {[%emt 0:34:35]} Rb8 {[%emt 0:10:09]} 24. Rxb8 {[%emt 0:01:15]} Qxb8 {[%emt 0:00:04]} 25. Qd3 {[%emt 0:02:51]} Rc5 {[%emt 0:06:54]} 26. Rd1 {[%emt 0:01:54]} Qb7 {[%emt 0:00:12]} 27. Nf1 {[%emt 0:02:35]} Qc6 {[%emt 0:01:21]} 28. Ne3 {[%emt 0:01:42]} a3 {[%emt 0:02:24]} 29. Nd5 {[%emt 0:00:59]} axb2 {[%emt 0:01:18]} 30. Kxb2 {[%emt 0:02:48]} Rb5 {[%emt 0:02:17]} 31. Qb3 {[%emt 0:04:02]} Ke8 {[%emt 0:02:05]} 32. Rd3 {[%emt 0:05:47]} Bd8 {[%emt 0:02:46]} 33. Rg3 {[%emt 0:02:26]} Kf8 {[%emt 0:00:14]} 34. Rh3 {[%emt 0:06:09]} Qc5 {[%emt 0:00:10]} 35. Qe3 {[%emt 0:02:51]} Qc4 {[%emt 0:02:25]} 36. Rxh7 {[%emt 0:02:57]} Ke8 {[%emt 0:01:05]} 37. Qa7 {[%emt 0:04:17]} Qd4+ {[%emt 0:01:07]} 38. Qxd4 {[%emt 0:00:03]} exd4 {[%emt 0:00:04]} 39. Rh8+ {[%emt 0:01:19]} Kd7 {[%emt 0:00:05]} 40. Rf8 {[%emt 0:00:00]} Ba5 {[%emt 0:00:00]} 41. Rxf7+ {[%emt 0:01:22]} Kc6 {[%emt 0:01:25]} 42. Rxf6 {[%emt 0:02:56]} 1-0

[Event "POL-chT 1st League 2020"]
[Site "Ustron"]
[Date "2020.09.09"]
[Round "5.15"]
[White "Luch, Michal"]
[Black "Kozak, Antoni"]
[Result "0-1"]
[ECO "D30"]
[WhiteElo "2389"]
[BlackElo "2347"]
[Annotator "RC"]
[PlyCount "108"]
[EventDate "2020.09.05"]
[EventType "team-tourn"]
[EventCountry "POL"]
[SourceTitle "playchess.com"]
[Source "ChessBase"]
[SourceQuality "1"]
[TimeControl "40/5400+30:1800+30"]

1. d4 d5 {[%emt 0:00:00]} 2. c4 {[%emt 0:00:00]} e6 {[%emt 0:00:00]} 3. Nf3 {[%emt 0:01:19]} Nf6 {[%emt 0:00:00]} 4. e3 {[%emt 0:04:20]} Nbd7 {[%emt 0:08:08]} 5. b3 {[%emt 0:02:01]} b6 {[%emt 0:01:53]} 6. Bb2 {[%emt 0:03:54]} Bb7 {[%emt 0:00:06]} 7. Nbd2 {[%emt 0:02:20]} Bd6 {[%emt 0:00:08]} 8. Bd3 {[%emt 0:00:22]} O-O {[%emt 0:02:41]} 9. O-O {[%emt 0:02:18]} Re8 {[%emt 0:01:26]} 10. Ne5 {[%emt 0:03:11]} c5 {[%emt 0:00:12]} 11. cxd5 {[%emt 0:10:46]} exd5 {[%emt 0:01:49]} 12. Nxd7 {[%emt 0:07:14]} Nxd7 {[%emt 0:01:55]} 13. Qh5 {[%emt 0:12:48]} Nf6 {[%emt 0:08:02]} 14. Qh3 {[%emt 0:00:15]} Ne4 {[%emt 0:07:23]} 15. Nxe4 {[%emt 0:09:56]} dxe4 {[%emt 0:00:06]} 16. Bc4 {[%emt 0:00:08]} Qg5 {[%emt 0:09:35]} 17. Qd7 {[%emt 0:06:13]} Qe7 {[%emt 0:00:14]} 18. Qg4 {[%emt 0:08:51]} cxd4 {[%emt 0:07:35]} 19. Bxd4 {[%emt 0:00:21]} g6 {[%emt 0:00:04]} 20. Rad1 {[%emt 0:12:05]} Red8 {[%emt 0:03:51]} 21. Qh3 {[%emt 0:02:22]} h5 {[%emt 0:06:38]} 22. f4 {[%emt 0:03:27]} exf3 {[%emt 0:10:15]} 23. gxf3 {[%emt 0:00:04]} b5 {[%emt 0:00:14]} 24. Be2 {[%emt 0:02:17]} Bc5 {[%emt 0:00:13]} 25. Bxc5 {[%emt 0:02:40]} Qxc5 {[%emt 0:00:05]} 26. Kf2 {[%emt 0:00:08]} Re8 {[%emt 0:06:41]} 27. Rd3 {[%emt 0:02:59]} b4 {[%emt 0:02:11]} 28. Qh4 {[%emt 0:00:38]} Ba6 {[%emt 0:04:10]} 29. Qd4 {[%emt 0:00:12]} Qe7 {[%emt 0:00:04]} 30. Rdd1 {[%emt 0:00:03]} Rad8 {[%emt 0:07:31]} 31. Qf4 {[%emt 0:00:07]} Bxe2 {[%emt 0:03:26]} 32. Kxe2 {[%emt 0:00:01]} Rc8 {[%emt 0:00:26]} 33. Rd2 {[%emt 0:02:28]} Rc3 {[%emt 0:00:17]} 34. e4 {[%emt 0:00:01]} Qc5 {[%emt 0:00:39]} 35. h4 {[%emt 0:00:49]} Rc2 {[%emt 0:02:32]} 36. Rfd1 {[%emt 0:00:05]} Rc8 {[%emt 0:01:19]} 37. Rxc2 {[%emt 0:01:10]} Qxc2+ {[%emt 0:00:03]} 38. Qd2 {[%emt 0:00:23]} Qc7 {[%emt 0:02:04]} 39. Qd6 {[%emt 0:00:01]} Qa5 {[%emt 0:00:09]} 40. Rd2 {[%emt 0:00:00]} Qb5+ {[%emt 0:00:00]} 41. Qd3 {[%emt 0:13:39]} Qe5 {[%emt 0:00:43]} 42. Qd6 {[%emt 0:01:36]} Qb5+ {[%emt 0:03:22]} 43. Qd3 {[%emt 0:00:04]} Qb6 {[%emt 0:00:03]} 44. Qd4 {[%emt 0:10:48]} Qa6+ {[%emt 0:00:07]} 45. Kf2 {[%emt 0:04:56]} Rc1 {[%emt 0:01:54]} 46. Kg3 {[%emt 0:02:09]} Rh1 {[%emt 0:05:50]} 47. Qd8+ {[%emt 0:00:59]} Kg7 {[%emt 0:00:43]} 48. Qd4+ {[%emt 0:00:34]} Kh7 {[%emt 0:00:04]} 49. Qd7 {[%emt 0:00:50]} Qf6 {[%emt 0:00:22]} 50. Kg2 {[%emt 0:00:36]} Rxh4 {[%emt 0:00:21]} 51. Kg3 {[%emt 0:00:31]} Qf4+ 52. Kg2 Qf6 53. Qd6 Rh1 54. Qxb4 Qa6 0-1

[Event "POL-chT 1st League 2020"]
[Site "Ustron"]
[Date "2020.09.09"]
[Round "5.17"]
[White "Skawinski, Arkadiusz"]
[Black "Czernek, Tymon"]
[Result "0-1"]
[ECO "B31"]
[WhiteElo "2384"]
[BlackElo "2267"]
[Annotator "RC"]
[PlyCount "78"]
[EventDate "2020.09.05"]
[EventType "team-tourn"]
[EventCountry "POL"]
[SourceTitle "playchess.com"]
[Source "ChessBase"]
[SourceQuality "1"]
[TimeControl "40/5400+30:1800+30"]

1. e4 {[%emt 0:00:00]} c5 {[%emt 0:00:00]} 2. Nf3 {[%emt 0:00:00]} Nc6 {[%emt 0:00:00]} 3. Bb5 {[%emt 0:00:00]} g6 {[%emt 0:00:00]} 4. Bxc6 {[%emt 0:00:00]} dxc6 {[%emt 0:00:00]} 5. d3 {[%emt 0:00:03]} Bg7 {[%emt 0:00:00]} 6. h3 {[%emt 0:00:05]} e5 {[%emt 0:01:55]} 7. Be3 {[%emt 0:00:58]} b6 {[%emt 0:00:03]} 8. Nc3 {[%emt 0:04:19]} Ne7 {[%emt 0:00:18]} 9. Qd2 {[%emt 0:03:50]} h6 {[%emt 0:00:05]} 10. Nh2 {[%emt 0:04:44]} g5 {[%emt 0:01:52]} 11. Nf1 {[%emt 0:21:31]} Ng6 {[%emt 0:00:31]} 12. Ng3 {[%emt 0:00:02]} Nf4 {[%emt 0:02:36]} 13. Rh2 {[%emt 0:10:21]} Be6 {[%emt 0:01:25]} 14. Nf5 {[%emt 0:01:35]} Bxf5 {[%emt 0:06:15]} 15. exf5 {[%emt 0:00:07]} Qd7 {[%emt 0:00:07]} 16. Ne4 {[%emt 0:00:51]} O-O-O {[%emt 0:00:35]} 17. g4 {[%emt 0:11:15]} h5 {[%emt 0:03:09]} 18. f3 {[%emt 0:09:59]} c4 {[%emt 0:11:50]} 19. dxc4 {[%emt 0:10:04]} Qe7 {[%emt 0:04:51]} 20. Qc3 {[%emt 0:00:09]} hxg4 {[%emt 0:00:07]} 21. fxg4 {[%emt 0:00:38]} Rd4 {[%emt 0:01:20]} 22. f6 {[%emt 0:02:10]} Bxf6 {[%emt 0:00:33]} 23. Nxf6 {[%emt 0:00:06]} Qxf6 {[%emt 0:00:19]} 24. Bxd4 {[%emt 0:01:33]} exd4 {[%emt 0:00:21]} 25. Qf3 {[%emt 0:01:09]} Re8+ {[%emt 0:01:33]} 26. Kd2 {[%emt 0:05:07]} Re3 {[%emt 0:00:08]} 27. Qf1 {[%emt 0:00:03]} Qe5 {[%emt 0:01:03]} 28. Re1 {[%emt 0:06:19]} Qa5+ {[%emt 0:00:11]} 29. c3 {[%emt 0:02:59]} Qxa2 {[%emt 0:00:13]} 30. Rc1 {[%emt 0:04:17]} Qxb2+ {[%emt 0:02:43]} 31. Rc2 {[%emt 0:00:04]} Qa3 {[%emt 0:00:18]} 32. Qc1 {[%emt 0:01:07]} Qe7 {[%emt 0:00:53]} 33. Qf1 {[%emt 0:00:08]} Rd3+ {[%emt 0:06:41]} 34. Kc1 {[%emt 0:00:07]} dxc3 {[%emt 0:00:10]} 35. Rhf2 {[%emt 0:00:37]} Re3 {[%emt 0:01:19]} 36. Kd1 {[%emt 0:00:54]} Qa3 {[%emt 0:00:42]} 37. Rf3 {[%emt 0:00:40]} Qa1+ {[%emt 0:00:56]} 38. Rc1 {[%emt 0:00:06]} c2+ {[%emt 0:00:06]} 39. Kxc2 {[%emt 0:00:23]} Qc3+ {[%emt 0:00:06]} 0-1

[Event "POL-chT 1st League 2020"]
[Site "Ustron"]
[Date "2020.09.10"]
[Round "6.6"]
[White "Kucharska, Honorata"]
[Black "Marcinczyk, Monika"]
[Result "1-0"]
[ECO "B40"]
[WhiteElo "2237"]
[BlackElo "1934"]
[Annotator "RC"]
[PlyCount "86"]
[EventDate "2020.09.05"]
[EventType "team-tourn"]
[EventCountry "POL"]
[SourceTitle "playchess.com"]
[Source "ChessBase"]
[SourceQuality "1"]
[TimeControl "40/5400+30:1800+30"]

1. e4 {[%emt 0:00:00]} c5 {[%emt 0:00:00]} 2. Nf3 {[%emt 0:00:00]} e6 {[%emt 0:00:00]} 3. g3 {[%emt 0:00:42]} Nc6 {[%emt 0:00:41]} 4. Bg2 {[%emt 0:00:16]} Nf6 {[%emt 0:03:01]} 5. Qe2 {[%emt 0:00:58]} d5 {[%emt 0:01:56]} 6. exd5 {[%emt 0:01:14]} Nxd5 {[%emt 0:00:17]} 7. O-O {[%emt 0:00:45]} Be7 {[%emt 0:03:56]} 8. Rd1 {[%emt 0:03:47]} Bf6 {[%emt 0:10:01]} 9. Nc3 {[%emt 0:03:07]} Nxc3 {[%emt 0:02:29]} 10. dxc3 {[%emt 0:02:33]} Qe7 {[%emt 0:02:14]} 11. Bf4 {[%emt 0:02:14]} e5 {[%emt 0:03:09]} 12. Be3 {[%emt 0:03:00]} Bd7 {[%emt 0:07:24]} 13. Nd2 {[%emt 0:03:02]} b6 {[%emt 0:22:10]} 14. Ne4 {[%emt 0:05:15]} g6 {[%emt 0:09:35]} 15. Qf3 {[%emt 0:11:34]} Bg7 {[%emt 0:01:38]} 16. Nd6+ {[%emt 0:00:40]} Kf8 {[%emt 0:02:38]} 17. Qxf7+ {[%emt 0:02:05]} Qxf7 {[%emt 0:00:07]} 18. Nxf7 {[%emt 0:00:03]} Bg4 {[%emt 0:05:19]} 19. Bxc6 {[%emt 0:05:06]} Kxf7 {[%emt 0:01:24]} 20. Bxa8 {[%emt 0:00:44]} Rxa8 {[%emt 0:00:57]} 21. Rd2 {[%emt 0:01:33]} Bf6 {[%emt 0:05:39]} 22. f4 {[%emt 0:05:07]} e4 {[%emt 0:00:51]} 23. a4 {[%emt 0:02:15]} Rc8 {[%emt 0:03:19]} 24. a5 {[%emt 0:03:16]} b5 {[%emt 0:01:22]} 25. Rd5 {[%emt 0:02:03]} Be7 {[%emt 0:01:37]} 26. Kf2 {[%emt 0:02:41]} Be6 {[%emt 0:02:51]} 27. Re5 {[%emt 0:06:03]} Bd6 {[%emt 0:01:28]} 28. Rxe4 {[%emt 0:00:58]} Bf5 {[%emt 0:00:34]} 29. Kf3 {[%emt 0:01:28]} Bxe4+ {[%emt 0:01:25]} 30. Kxe4 {[%emt 0:00:03]} Re8+ {[%emt 0:00:08]} 31. Kf3 {[%emt 0:00:06]} Ke6 {[%emt 0:01:20]} 32. Rd1 {[%emt 0:02:36]} a6 {[%emt 0:00:41]} 33. g4 {[%emt 0:00:44]} Rf8 {[%emt 0:01:03]} 34. h4 {[%emt 0:01:54]} h6 {[%emt 0:02:08]} 35. h5 {[%emt 0:06:04]} gxh5 {[%emt 0:01:02]} 36. f5+ {[%emt 0:00:03]} Ke7 {[%emt 0:00:47]} 37. Bxh6 {[%emt 0:00:26]} hxg4+ {[%emt 0:00:06]} 38. Kxg4 {[%emt 0:00:28]} Rg8+ {[%emt 0:00:09]} 39. Bg5+ {[%emt 0:00:17]} Kd7 {[%emt 0:00:08]} 40. f6 {[%emt 0:00:00]} Ke6 {[%emt 0:00:00]} 41. Re1+ {[%emt 0:00:26]} Be5 {[%emt 0:01:29]} 42. f7 {[%emt 0:00:45]} Rf8 {[%emt 0:00:11]} 43. Bf4 {[%emt 0:00:05]} Kd5 1-0

[Event "POL-chT 1st League 2020"]
[Site "Ustron"]
[Date "2020.09.12"]
[Round "8.4"]
[White "Godzwon, Iwo"]
[Black "Rawicz, Karol"]
[Result "1-0"]
[ECO "B01"]
[WhiteElo "2317"]
[BlackElo "2225"]
[Annotator "NA RC"]
[PlyCount "67"]
[EventDate "2020.09.05"]
[EventType "team-tourn"]
[EventCountry "POL"]
[SourceTitle "playchess.com"]
[Source "ChessBase"]
[SourceQuality "1"]
[WhiteTeam "UKS RODLO Opole"]
[BlackTeam "SSz Gminy Pawlowice"]
[TimeControl "40/5400+30:1800+30"]

1. e4 {[%emt 0:00:00]} d5 {[%emt 0:00:00]} 2. exd5 {[%emt 0:00:00]} Qxd5 {[%emt 0:00:00]} 3. Nc3 {[%emt 0:00:00]} Qa5 {[%emt 0:00:00]} 4. d4 {[%emt 0:00:26]} Nf6 {[%emt 0:00:00]} 5. Bd2 {[%emt 0:04:52]} Qb6 {[%emt 0:01:47]} 6. Nf3 {[%emt 0:00:54]} Bg4 {[%emt 0:09:51] B01: Scandinavian Defence.} 7. h3 {[%emt 0:09:05]} Bxf3 {[%emt 0:02:05]} 8. Qxf3 {[%emt 0:00:04]} c6 {[%emt 0:00:30]} 9. O-O-O {[%emt 0:03:43]} e6 {[%emt 0:01:34]} 10. g4 {[%emt 0:10:00]} Nbd7 {[%emt 0:06:28]} 11. g5 {[%emt 0:00:04]} Nd5 {[%emt 0:00:13]} 12. Nxd5 {[%emt 0:00:36]} cxd5 {[%emt 0:00:34]} 13. c3 {[%emt 0:02:15]} Rc8 {[%emt 0:09:05]} 14. Kb1 {[%emt 0:06:18] [#]} Qc6 $146 {[%emt 0:17:39]} ({Predecessor:} 14... a5 15. Ka1 a4 16. Bd3 a3 17. b3 Bd6 18. h4 O-O 19. h5 f5 20. gxf6 Nxf6 {1-0 (52) Postupa,P (2226)-Hosticka,F (2192) Prague 2015}) 15. h4 {[%emt 0:02:35]} g6 {[%emt 0:00:49]} 16. h5 {[%emt 0:01:40]} Bg7 {[%emt 0:01:16]} (16... Rg8 $16 17. Bd3 (17. hxg6 hxg6 18. Bd3 Bg7 $16) 17... a6 18. hxg6 hxg6) 17. Bd3 {[%emt 0:05:36]} Rg8 {[%emt 0:00:52]} 18. Rde1 {[%emt 0:11:31]} Nb6 {[%emt 0:06:14]} 19. b3 {[%emt 0:03:47]} Rc7 {[%emt 0:00:22]} 20. hxg6 {[%emt 0:03:00]} hxg6 {[%emt 0:00:08]} 21. Rh7 {[%emt 0:00:02]} Nc8 {[%emt 0:01:56]} 22. Rc1 {[%emt 0:12:21]} b5 {[%emt 0:13:23] [#]} 23. Bf4 {[%emt 0:00:14]} (23. Rch1 $1 $18 Ne7 24. Bf4) 23... Rb7 {[%emt 0:00:01]} 24. Rch1 {[%emt 0:05:31]} Bf8 {[%emt 0:10:33]} 25. Be5 {[%emt 0:03:05]} Nb6 {[%emt 0:00:02]} 26. Rh8 {[%emt 0:00:21]} Rxh8 {[%emt 0:00:06]} 27. Rxh8 $18 {[%emt 0:00:03]} ({Inferior is} 27. Bxh8 Nc4 $11) 27... Nd7 {[%emt 0:00:13]} 28. Bg7 {[%emt 0:01:30]} Qd6 {[%emt 0:00:28]} 29. Bh6 {[%emt 0:01:52]} Qh2 {[%emt 0:09:08]} 30. Kb2 {[%emt 0:02:44]} b4 {[%emt 0:05:51]} 31. c4 {[%emt 0:00:04]} Qd6 {[%emt 0:00:03]} 32. c5 {[%emt 0:00:28]} Qc7 {[%emt 0:00:43]} 33. Bxg6 {[%emt 0:00:20]} Nxc5 {[%emt 0:01:19]} 34. Rxf8+ {[%emt 0:00:04]} 1-0

[Event "POL-chT 1st League 2020"]
[Site "Ustron"]
[Date "2020.09.12"]
[Round "8.6"]
[White "Starosta, Martyna"]
[Black "Marcinczyk, Monika"]
[Result "0-1"]
[ECO "B38"]
[WhiteElo "2038"]
[BlackElo "1934"]
[Annotator "NA"]
[PlyCount "98"]
[EventDate "2020.09.05"]
[EventType "team-tourn"]
[EventCountry "POL"]
[SourceTitle "playchess.com"]
[Source "ChessBase"]
[SourceQuality "1"]
[WhiteTeam "UKS RODLO Opole"]
[BlackTeam "SSz Gminy Pawlowice"]
[TimeControl "40/5400+30:1800+30"]

1. e4 {[%emt 0:00:00]} c5 {[%emt 0:00:00]} 2. Nf3 {[%emt 0:00:00]} Nc6 {[%emt 0:00:00]} 3. d4 {[%emt 0:00:00]} cxd4 {[%emt 0:00:00]} 4. Nxd4 {[%emt 0:00:00]} g6 {[%emt 0:00:00]} 5. c4 {[%emt 0:00:00]} Bg7 {[%emt 0:00:00]} 6. Be3 {[%emt 0:00:01]} Nf6 {[%emt 0:00:10]} 7. Nc3 {[%emt 0:00:09]} O-O {[%emt 0:00:25]} 8. Be2 {[%emt 0:00:09]} d6 {[%emt 0:00:20]} 9. f3 {[%emt 0:00:06]} Bd7 {[%emt 0:01:39]} 10. Qd2 {[%emt 0:00:27]} Nxd4 {[%emt 0:03:37]} 11. Bxd4 {[%emt 0:00:14]} a5 {[%emt 0:00:06] outshines the older 11...Bc6. B38: Sicilian: Maroczy Bind with 5...Bg7 and 7...0-0.} 12. g4 {[%emt 0:05:45]} Bc6 {[%emt 0:02:50]} 13. O-O-O {[%emt 0:00:32] [#]} Qc7 $146 {[%emt 0:12:00]} ({Predecessor:} 13... a4 14. h4 Qa5 15. h5 Rfc8 16. Kb1 Bd7 17. hxg6 hxg6 18. Bxf6 Bxf6 19. Nd5 Qxd2 20. Rxd2 {1-0 (31) Srija,S (2306)-Dhyana,P (1900) Managiri 2019}) 14. Kb1 {[%emt 0:02:33]} Rfd8 {[%emt 0:01:16]} 15. Qe3 {[%emt 0:04:57]} Rd7 {[%emt 0:06:40]} 16. h4 {[%emt 0:02:57]} e6 {[%emt 0:16:51]} 17. Bb6 {[%emt 0:06:28]} Qc8 {[%emt 0:06:12]} 18. h5 {[%emt 0:07:20]} Ne8 {[%emt 0:11:43]} 19. hxg6 {[%emt 0:03:12]} fxg6 {[%emt 0:01:07]} 20. c5 {[%emt 0:03:28]} dxc5 {[%emt 0:04:52]} 21. Qxc5 {[%emt 0:07:03]} Nf6 {[%emt 0:04:12]} 22. Bc4 {[%emt 0:05:02]} Qe8 {[%emt 0:01:13]} 23. Bxa5 {[%emt 0:23:47]} b5 {[%emt 0:08:51]} 24. Bb3 {[%emt 0:16:22]} Rxa5 {[%emt 0:01:33]} 25. e5 {[%emt 0:01:24]} Bxf3 {[%emt 0:08:44]} 26. exf6 {[%emt 0:06:12]} Rxd1+ {[%emt 0:05:27]} 27. Rxd1 {[%emt 0:00:01]} Bxd1 {[%emt 0:00:26]} 28. Qc7 {[%emt 0:01:29]} Bxf6 {[%emt 0:00:41]} 29. Ne4 {[%emt 0:02:03]} Bd8 {[%emt 0:01:09]} 30. Bxe6+ {[%emt 0:00:14]} Qxe6 {[%emt 0:00:28]} 31. Qxd8+ {[%emt 0:00:03]} Kg7 {[%emt 0:00:14]} 32. Qd4+ {[%emt 0:02:05]} Kf8 {[%emt 0:01:13]} 33. Qh8+ {[%emt 0:00:57]} Qg8 {[%emt 0:00:20]} 34. Qf6+ {[%emt 0:00:11]} Qf7 {[%emt 0:00:29]} 35. Qh8+ $11 {[%emt 0:00:41]} Ke7 {[%emt 0:00:36]} 36. Qe5+ {[%emt 0:00:03]} Qe6 {[%emt 0:00:54]} 37. Qg7+ {[%emt 0:00:37]} Kd8 {[%emt 0:00:32]} 38. Qd4+ {[%emt 0:00:40]} Kc7 {[%emt 0:00:33]} 39. Qc5+ {[%emt 0:01:07]} Qc6 {[%emt 0:00:44]} 40. Qe5+ {[%emt 0:00:00]} Kb7 {[%emt 0:00:00]} 41. Qe7+ {[%emt 0:13:21]} Kb6 {[%emt 0:04:04]} 42. Qd8+ {[%emt 0:00:25]} Ka6 {[%emt 0:00:58]} 43. Nc5+ {[%emt 0:00:39]} Qxc5 {[%emt 0:00:51]} 44. Qa8+ {[%emt 0:00:08]} Kb6 {[%emt 0:00:12]} 45. Qb8+ {[%emt 0:00:06]} Kc6 {[%emt 0:00:09]} 46. Qe8+ {[%emt 0:00:39]} Kb7 {[%emt 0:02:03]} 47. Qd7+ {[%emt 0:00:18]} Qc7 {[%emt 0:00:13]} 48. Qd5+ {[%emt 0:00:09]} Qc6 {[%emt 0:00:18]} 49. Qf7+ {[%emt 0:00:50]} Ka6 {[%emt 0:00:12]} 0-1

[Event "POL-chT 1st League 2020"]
[Site "Ustron"]
[Date "2020.09.12"]
[Round "8.12"]
[White "Kucharska, Honorata"]
[Black "Wikar, Martyna"]
[Result "1/2-1/2"]
[ECO "A46"]
[WhiteElo "2237"]
[BlackElo "2045"]
[Annotator "ChessBase"]
[PlyCount "53"]
[EventDate "2020.09.05"]
[EventType "team-tourn"]
[EventCountry "POL"]
[SourceTitle "playchess.com"]
[Source "ChessBase"]
[SourceQuality "1"]
[WhiteTeam "MKSz Rybnik"]
[BlackTeam "LKSz GCKiP Czarna"]
[TimeControl "40/5400+30:1800+30"]

1. d4 {[%emt 0:00:00]} Nf6 {[%emt 0:00:00]} 2. Nf3 {[%emt 0:00:15]} e6 {[%emt 0:00:19]} 3. g3 {[%emt 0:01:03]} c5 {[%emt 0:00:33]} 4. Bg2 {[%emt 0:03:33]} Nc6 {[%emt 0:00:41]} 5. O-O {[%emt 0:01:47]} d5 {[%emt 0:03:44]} 6. c4 {[%emt 0:03:56]} dxc4 {[%emt 0:08:53]} 7. dxc5 {[%emt 0:00:08]} Qxd1 {[%emt 0:02:03]} 8. Rxd1 {[%emt 0:00:03]} Bxc5 {[%emt 0:00:18]} 9. Nbd2 {[%emt 0:03:02]} Ng4 {[%emt 0:29:50]} 10. Ne4 {[%emt 0:06:02]} Be7 {[%emt 0:00:36]} 11. h3 {[%emt 0:04:30]} Nf6 {[%emt 0:01:31]} 12. Ned2 {[%emt 0:03:36]} c3 {[%emt 0:05:53]} 13. bxc3 {[%emt 0:01:19]} O-O {[%emt 0:01:14]} 14. c4 {[%emt 0:07:30]} Rd8 {[%emt 0:03:50]} 15. Bb2 {[%emt 0:00:48]} a5 {[%emt 0:02:54]} 16. Ne5 {[%emt 0:08:23]} Bd7 {[%emt 0:05:20]} 17. Nb3 {[%emt 0:05:23]} a4 {[%emt 0:04:03]} 18. Nxd7 {[%emt 0:07:41]} Nxd7 {[%emt 0:01:59]} 19. Nd4 {[%emt 0:01:49]} Na5 {[%emt 0:04:19]} 20. Bc3 {[%emt 0:01:15]} Nc5 {[%emt 0:01:44]} 21. Bxa5 {[%emt 0:03:42]} Rxa5 {[%emt 0:00:09]} 22. Nb5 {[%emt 0:01:50]} Raa8 {[%emt 0:02:17]} 23. Rab1 {[%emt 0:02:53]} g6 {[%emt 0:02:37]} 24. Bf3 {[%emt 0:03:08]} Kg7 {[%emt 0:01:08]} 25. Kg2 {[%emt 0:00:41]} Rxd1 {[%emt 0:03:00]} 26. Rxd1 {[%emt 0:00:16]} Rc8 {[%emt 0:03:59]} 27. h4 {[%emt 0:04:19]} 1/2-1/2